[Event "87th Spanish Championship 2022"]
[Site "Linares"]
[Date "2022.08.16"]
[Round "7.12"]
[White "Espinosa Aranda, Angel"]
[Black "Fernandez Garcia, Jose Luis"]
[Result "1/2-1/2"]
[ECO "D02"]
[WhiteElo "2439"]
[BlackElo "2362"]
[Annotator "TA"]
[PlyCount "61"]
[EventDate "2022.08.11"]
[EventType "swiss"]
[EventCountry "ESP"]
[SourceTitle "playchess.com"]
[Source "ChessBase"]
[SourceQuality "1"]
[TimeControl "5400+30"]

{[%evp 19,61,0,8,0,4,11,51,51,50,44,37,36,43,56,47,37,25,15,32,16,35,7,21,0,38,38,38,38,49,0,0,0,19,0,0,0,0,0,0,0,0,0,0,0]} 1. d4 {[%emt 0:04:37]} d5 {[%emt 0:00:26]} 2. Nf3 {[%emt 0:00:26]} c5 {[%emt 0:00:32]} 3. c4 {[%emt 0:01:05]} e6 {[%emt 0:00:11]} 4. cxd5 {[%emt 0:00:49]} exd5 {[%emt 0:00:06]} 5. g3 {[%emt 0:00:19]} Nc6 {[%emt 0:00:12]} 6. Bg2 {[%emt 0:00:18]} c4 {[%emt 0:00:08]} 7. O-O {[%emt 0:00:27]} Bb4 {[%emt 0:00:08]} 8. Nc3 {[%emt 0:06:58][%cal Bb1c3,Bc3a4,Ba4c5][%mdl 32]} Nge7 {[%emt 0:02:00]} 9. Ne5 {[%emt 0:04:57]} O-O {[%emt 0:01:48]} 10. Nxc6 {[%emt 0:02:37]} bxc6 {[%emt 0:00:09]} 11. Na4 {[%emt 0:04:23] D33: Tarrasch Defence: 6 g3 sidelines.} Re8 {[%emt 0:03:18]} 12. Bd2 {[%emt 0:04:15]} Rb8 {[%emt 0:09:21]} 13. Bxb4 {[%emt 0:03:30] White is slightly better.} Rxb4 {[%emt 0:00:16]} 14. b3 {[%emt 0:00:03]} Nf5 {[%emt 0:03:26]} 15. e3 {[%emt 0:00:24]} Nd6 {[%emt 0:00:13]} 16. Nc5 {[%emt 0:02:44] [#]} a5 $146 {[%emt 0:07:05]} ({Predecessor:} 16... Bf5 17. Qd2 a5 18. f3 h5 19. Rfe1 Bg6 20. Rac1 Re7 21. Bf1 cxb3 22. axb3 Nb7 23. Nxb7 Rexb7 24. Rxc6 Rxb3 25. Rec1 Kh7 26. Ra6 {½-½ (26) Figura,A (2413)-Muse,D (2366) Berlin 2007}) 17. Rc1 {[%emt 0:08:31]} g6 {[%emt 0:04:43]} 18. Re1 {[%emt 0:03:35]} h5 {[%emt 0:00:18]} 19. h4 {[%emt 0:02:34]} Bg4 {[%emt 0:08:10]} 20. Bf3 {[%emt 0:09:55]} Qc8 {[%emt 0:02:54]} 21. bxc4 {[%emt 0:08:21]} (21. Bxg4 {is more complex.} Qxg4 22. Qxg4 hxg4 23. Kf1) 21... Rxc4 {[%emt 0:20:14]} (21... Bxf3 {looks sharper.} 22. Qxf3 Nxc4 23. Qf6 Rb2) 22. Rxc4 {[%emt 0:05:03]} Nxc4 {[%emt 0:00:08]} 23. Bxg4 {[%emt 0:00:50]} hxg4 {[%emt 0:00:13]} 24. e4 {[%emt 0:02:55]} (24. Qd3 $14) 24... dxe4 $11 {[%emt 0:01:25] The position is equal.} 25. Nxe4 {[%emt 0:00:43] [#] Strongly threatening Nf6+.} Re6 {[%emt 0:03:10] Against Nf6+} 26. Nd2 {[%emt 0:04:48]} ({Much weaker is} 26. Qxg4 f5 27. Qg5 (27. Qe2 $2 Nd6 $19) 27... fxe4 $17) 26... Rxe1+ {[%emt 0:04:21]} 27. Qxe1 {[%emt 0:00:05]} Nxd2 {[%emt 0:00:04]} 28. Qxd2 {[%emt 0:00:03]} Qf5 {[%emt 0:00:06]} 29. a3 {[%emt 0:00:48]} Qb1+ {[%emt 0:00:29]} 30. Kg2 {[%emt 0:00:09]} Qe4+ {[%emt 0:00:11]} 31. Kg1 {[%emt 0:00:05] Weighted Error Value: White=0.09 (flawless) /Black=0.06 (flawless)} 1/2-1/2

[Event "87th Spanish Championship 2022"]
[Site "Linares"]
[Date "2022.08.16"]
[Round "7.13"]
[White "Bernabeu Lopez, Carlos Javier"]
[Black "Martinez-Conde Hernandez, Carlos"]
[Result "0-1"]
[ECO "E97"]
[WhiteElo "2421"]
[BlackElo "2205"]
[Annotator "TA"]
[PlyCount "100"]
[EventDate "2022.08.11"]
[EventType "swiss"]
[EventCountry "ESP"]
[SourceTitle "playchess.com"]
[Source "ChessBase"]
[SourceQuality "1"]
[TimeControl "5400+30"]

{[%evp 18,100,22,8,7,7,7,6,5,0,0,-43,-35,-44,-47,-42,-41,-45,-44,-38,-37,-34,-42,-43,-33,-41,0,0,0,-4,-14,-10,0,-11,0,0,0,0,0,0,7,0,0,0,0,0,0,0,0,0,0,0,0,-28,0,0,14,0,0,0,0,-11,-7,0,0,-641,-642,-755,-747,-711,-578,-666,-660,-703,-652,-973,-977,-942,-892,-1146,-992,-1092,-974,-920,-897]} 1. d4 {[%emt 0:00:04]} Nf6 {[%emt 0:00:31]} 2. c4 {[%emt 0:00:03]} g6 {[%emt 0:00:07]} 3. Nf3 {[%emt 0:00:05]} Bg7 {[%emt 0:00:09]} 4. Nc3 {[%emt 0:00:04]} O-O {[%emt 0:00:09]} 5. e4 {[%emt 0:00:04]} d6 {[%emt 0:00:06]} 6. Be2 {[%emt 0:00:05]} e5 {[%emt 0:00:10]} 7. O-O {[%emt 0:00:06]} Nc6 {[%emt 0:00:07]} 8. Be3 {[%emt 0:01:00]} Re8 {[%emt 0:03:00]} 9. d5 {[%emt 0:00:27]} Nd4 {[%emt 0:00:10]} 10. h3 {[%emt 0:05:24]} Bd7 {[%emt 0:13:38] E97: King's Indian: Classical Main Line (6...e5 7 0-0 Nc6): 8 Be3 and 8 d5 Ne7, not 9 Ne1.} 11. Re1 {[%emt 0:03:28]} Nxe2+ {[%emt 0:02:38]} 12. Qxe2 {[%emt 0:03:05]} Nh5 {[%emt 0:01:01] The position is equal.} 13. Qd2 {[%emt 0:03:25]} f5 {[%emt 0:09:11] [#]} 14. exf5 $146 {[%emt 0:01:57]} ({Predecessor:} 14. Bg5 Qc8 15. Bh6 f4 16. Bxg7 Kxg7 17. Kh2 Rf8 18. b4 b6 19. c5 bxc5 20. bxc5 {1-0 (49) Daeubler,H (2158)-Kracht,H (2019) Niederhausen 2016}) 14... gxf5 {[%emt 0:00:02] [#] Strongly threatening ...f4.} 15. Bg5 {[%emt 0:03:06]} Bf6 {[%emt 0:03:05]} 16. Bxf6 {[%emt 0:03:11]} Qxf6 {[%emt 0:00:22]} 17. Qg5+ {[%emt 0:02:45]} Qxg5 {[%emt 0:00:44]} 18. Nxg5 {[%emt 0:00:05]} h6 {[%emt 0:01:19]} 19. Nf3 {[%emt 0:00:41]} Nf4 {[%emt 0:00:55]} 20. Rad1 {[%emt 0:07:32]} Kf7 {[%emt 0:22:33]} 21. Kh2 {[%emt 0:02:52]} e4 {[%emt 0:00:18]} 22. Nd4 {[%emt 0:01:00]} Rg8 {[%emt 0:03:17]} 23. g3 {[%emt 0:06:07]} Nd3 {[%emt 0:00:24]} 24. Re2 {[%emt 0:00:04]} Ne5 {[%emt 0:00:10]} 25. Rc2 {[%emt 0:07:48]} a6 {[%emt 0:01:08]} 26. Nce2 {[%emt 0:02:19]} c5 {[%emt 0:04:11]} 27. dxc6 $1 {[%emt 0:01:13]} bxc6 {[%emt 0:00:02]} 28. Nf4 {[%emt 0:01:43]} a5 {[%emt 0:06:23]} 29. Kg2 {[%emt 0:06:40]} a4 {[%emt 0:00:59]} 30. Nde2 {[%emt 0:06:36] Pair of Knights!} Ke7 {[%emt 0:01:51]} 31. b3 {[%emt 0:00:45]} axb3 {[%emt 0:00:47]} 32. axb3 {[%emt 0:00:02]} Rgb8 {[%emt 0:02:38]} 33. Rcd2 {[%emt 0:01:06]} Nf7 {[%emt 0:00:31]} 34. Ng6+ {[%emt 0:01:15]} Kd8 {[%emt 0:00:45]} 35. Rb2 {[%emt 0:04:36]} Rb4 {[%emt 0:05:15]} 36. Nd4 {[%emt 0:04:06]} Rab8 {[%emt 0:00:17]} 37. Nf8 {[%emt 0:01:04]} (37. c5 {looks sharper.} Ke8 38. cxd6 c5 39. Nc2) 37... Rxc4 $1 {[%emt 0:03:02]} 38. Nxd7 {[%emt 0:02:10]} Kxd7 {[%emt 0:00:06]} 39. Nxf5 {[%emt 0:00:04]} Rc5 {[%emt 0:02:39]} 40. g4 {[%emt 0:02:01]} Rg8 {[%emt 0:02:54] [#] White must now prevent ...Rxf5.} 41. Ra2 $2 {[%emt 0:00:55][%mdl 8192]} Rxf5 $1 $19 {[%emt 0:00:24] Black is clearly winning.} 42. Ra7+ {[%emt 0:00:57]} Ke6 {[%emt 0:00:06]} 43. Rd4 {[%emt 0:00:22]} Re5 {[%emt 0:00:29]} 44. Rb4 {[%emt 0:00:07]} Ng5 {[%emt 0:01:01]} 45. Rb6 {[%emt 0:00:53]} c5 {[%emt 0:00:46][%cal Oh6h5]} 46. Raa6 {[%emt 0:00:23]} Rd5 {[%emt 0:00:06]} 47. Ra4 {[%emt 0:00:20]} Rd4 {[%emt 0:00:51]} 48. Ra7 {[%emt 0:00:19]} h5 {[%emt 0:00:27]} 49. Rbb7 {[%emt 0:00:18]} hxg4 {[%emt 0:00:14]} 50. hxg4 {[%emt 0:00:04]} Nf3 {[%emt 0:00:53] Weighted Error Value: White=0.42/Black=0.08 (flawless)} 0-1

[Event "87th Spanish Championship 2022"]
[Site "Linares"]
[Date "2022.08.16"]
[Round "7.14"]
[White "Gomez Dieguez, David"]
[Black "Tejedor Fuente, Enrique"]
[Result "0-1"]
[ECO "B23"]
[WhiteElo "2372"]
[BlackElo "2419"]
[Annotator "TA"]
[PlyCount "94"]
[EventDate "2022.08.11"]
[EventType "swiss"]
[EventCountry "ESP"]
[SourceTitle "playchess.com"]
[Source "ChessBase"]
[SourceQuality "1"]
[TimeControl "5400+30"]

{[%evp 9,94,18,33,37,35,33,73,70,88,31,72,68,75,67,66,61,58,56,56,63,70,70,87,87,97,96,114,113,123,131,123,110,130,130,143,119,132,70,100,114,128,116,214,204,211,225,208,136,117,0,27,17,4,11,10,0,0,-7,0,-406,-392,-389,-286,-278,-256,-270,-276,-274,-271,-440,-443,-955,-492,-393,-374,-5998,-6145,-29992,-29993,-29993,-29994,-29996,-29997,-29997,-29998,-29998,-29999]} 1. e4 {[%emt 0:00:01]} c5 {[%emt 0:02:34]} 2. Nc3 {[%emt 0:00:06]} a6 {[%emt 0:00:29]} 3. Nge2 {[%emt 0:00:54]} b5 {[%emt 0:00:35]} 4. g3 {[%emt 0:00:14]} Bb7 {[%emt 0:02:29]} 5. Bg2 {[%emt 0:00:07]} b4 {[%emt 0:02:45]} 6. Na4 {[%emt 0:00:25] B23: Closed Sicilian: Lines without g3.} e5 {[%emt 0:00:17]} 7. c3 {[%emt 0:08:48] [#]} bxc3 $146 {[%emt 0:01:33]} ({Predecessor:} 7... Nf6 8. d4 bxc3 9. dxe5 cxb2 10. Bxb2 Nxe4 11. O-O Be7 12. Qc2 d5 13. exd6 Nxd6 14. Bxb7 Nxb7 15. Bxg7 {1-0 (26) Motylev,A (2641)-Ogloblin,N (2346) Chess.com INT 2020}) 8. bxc3 {[%emt 0:00:47] White is better.} Nf6 {[%emt 0:00:59]} 9. Qb3 {[%emt 0:13:14]} (9. f4 $16) 9... Qc7 {[%emt 0:05:21]} (9... Bxe4 $2 10. Bxe4 Nxe4 11. Qd5 $18) 10. Rb1 {[%emt 0:05:32]} Ra7 {[%emt 0:01:41]} (10... Bxe4 $2 11. Bxe4 Nc6 12. Nb6 $18) 11. d4 {[%emt 0:04:31]} d6 {[%emt 0:10:25]} 12. O-O {[%emt 0:04:52]} Nbd7 {[%emt 0:02:36]} 13. d5 {[%emt 0:03:19]} Be7 {[%emt 0:00:57]} 14. c4 {[%emt 0:00:30]} h5 {[%emt 0:01:09]} 15. Bd2 {[%emt 0:02:05]} h4 {[%emt 0:01:59]} 16. Nc1 {[%emt 0:10:16][%cal Be2c1,Bc1b3,Bb3a5][%mdl 32]} g6 {[%emt 0:00:38]} 17. Qc2 {[%emt 0:08:12]} Kf8 {[%emt 0:03:42]} 18. Nb3 {[%emt 0:00:05]} Kg7 {[%emt 0:00:42]} 19. Na5 {[%emt 0:01:55]} Ba8 {[%emt 0:01:48]} 20. Bc3 {[%emt 0:01:24]} Qc8 {[%emt 0:06:45]} 21. Qe2 {[%emt 0:11:25]} Nh5 {[%emt 0:05:13]} 22. Bf3 {[%emt 0:02:02]} Nhf6 {[%emt 0:01:36]} 23. Bg4 {[%emt 0:01:05]} ({Better is} 23. Rb3 $16) 23... hxg3 {[%emt 0:01:45]} 24. hxg3 {[%emt 0:00:43]} Qg8 {[%emt 0:11:33]} 25. Kg2 {[%emt 0:01:01]} Nxe4 {[%emt 0:05:47]} 26. Qxe4 $18 {[%emt 0:01:24]} f5 {[%emt 0:00:04] [#]} 27. Bxf5 {[%emt 0:02:08]} Nf6 {[%emt 0:01:05]} 28. Qd3 {[%emt 0:02:11]} (28. Bxe5 dxe5 29. Qxe5 gxf5 $11) 28... gxf5 {[%emt 0:00:15]} 29. Qxf5 {[%emt 0:01:53]} ({White should play} 29. Nb6 $16) 29... Bxd5+ {[%emt 0:08:35]} 30. cxd5 {[%emt 0:00:01]} Qxd5+ {[%emt 0:00:07]} 31. f3 {[%emt 0:00:03] Threatens to win with Rh1.} Rh5 {[%emt 0:00:31]} 32. Qc8 {[%emt 0:03:20] Black must now prevent Rbd1.} Ra8 {[%emt 0:03:12][%cal Ba7a8,Ba8h8,Bh8h5,Bh5h2][%mdl 32]} 33. Qb7 {[%emt 0:00:41]} Rah8 {[%emt 0:01:12]} 34. Rh1 {[%emt 0:02:50][%mdl 8192] [#] Against Rh2+} (34. Qxe7+ Kg6 35. Rh1 (35. Rb7 Rh2+ 36. Kg1 Rh1+ 37. Kf2 Rxf1+ 38. Kxf1 Qxf3+ 39. Ke1 Qh1+ 40. Kf2 Rh2+ 41. Ke3 Qe4#) 35... Qd3 36. Rxh5 (36. Rbf1 Qe2+ 37. Rf2 Rxh1) 36... Qc2+ 37. Bd2 Qxd2+ 38. Kg1 Rxh5 39. Nc6 (39. Rb7 Qe1+ 40. Kg2 Qh1+ 41. Kf2 Rh2+ 42. Ke3 Qg1+ 43. Kd3 Qd4#) 39... Qe3+ 40. Kg2 Qe2+ 41. Kg1 Qxf3) (34. Qxd5 $1 $11 {and White has nothing to worry.} Rh2+ 35. Kg1 Nxd5 36. Rb3) 34... Qd3 $1 $19 {[%emt 0:12:26]} 35. Rxh5 {[%emt 0:05:24]} (35. Qxe7+ Kg6 36. Rxh5 Qc2+ 37. Bd2 Qxd2+ 38. Kg1 Rxh5 39. Nc3 Qh2+ 40. Kf1 Qc2 41. Ne2 Qxb1+ 42. Kg2 Rh1 43. Kf2 Rh2+ 44. Ke3 Nd5+ 45. Kd2 Qxa2+ 46. Kd1 Qxe2+ 47. Kc1 Rh1#) 35... Qe2+ {[%emt 0:00:01]} 36. Kg1 {[%emt 0:00:09]} Rxh5 $40 {[%emt 0:00:02][%mdl 128] Black wants a kill. The board is on fire.} 37. Re1 {[%emt 0:02:56]} ({Don't go for} 37. Qxe7+ $2 Kg6 38. Qb7 (38. Rb7 Qh2+ 39. Kf1 Qh1+ 40. Kf2 Rh2+ 41. Ke3 Qc1+ 42. Kd3 Qf1+ 43. Ke3 Qe2#) 38... e4 $19) 37... Qh2+ {[%emt 0:00:36]} 38. Kf1 {[%emt 0:00:00]} Qxg3 {[%emt 0:03:20][%cal Oh5h2]} 39. Ke2 $2 {[%emt 0:01:17] [#]} (39. Qxe7+ Kg6) (39. Nxc5 {keeps fighting.} Kg6 40. Qb1+ Kg7 41. Qb7) 39... Rh2+ $1 {[%emt 0:00:11][%mdl 64] Skewer} 40. Kd1 {[%emt 0:00:01] [#]} (40. Kd3 $142 Kg6 41. Bd2) 40... Qg2 $1 {[%emt 0:01:07][%csl Gh2][%cal Rg2c2]} 41. Qb3 {[%emt 0:00:54] Inhibits Qc2+.} (41. Qxe7+ {leads to mate.} Kg6) 41... Nd5 {[%emt 0:01:31][%cal Oe7g5] ( -> ...Bg5!)} 42. Kc1 $2 {[%emt 0:00:02]} (42. Nc4 Bh4 43. Nxd6 Qxf3+ 44. Kc1 Qf4+ 45. Kb1 Nxc3+ 46. Nxc3 Bxe1 47. Nd5) 42... Nxc3 {[%emt 0:01:16]} 43. Qxc3 {[%emt 0:00:31]} Bg5+ {[%emt 0:00:04][%cal Be7g5,Bg5c1,Bc1e3][%mdl 32] Black mates.} 44. Kd1 {[%emt 0:01:43]} Qxa2 {[%emt 0:00:06]} 45. Nb3 {[%emt 0:00:40]} Qb1+ {[%emt 0:00:43]} 46. Nc1 {[%emt 0:00:02]} Bxc1 {[%emt 0:00:21]} 47. Rxe5 {[%emt 0:00:36]} Be3+ {[%emt 0:00:34] Never resign too early!  Weighted Error Value: White=0.66/Black=0.20 (precise)} 0-1

[Event "87th Spanish Championship 2022"]
[Site "Linares"]
[Date "2022.08.16"]
[Round "7.15"]
[White "Carbonell Sancho, Marc"]
[Black "Ingunza Curro, Andres"]
[Result "1-0"]
[ECO "B63"]
[WhiteElo "2284"]
[BlackElo "2370"]
[Annotator "TA"]
[PlyCount "53"]
[EventDate "2022.08.11"]
[EventType "swiss"]
[EventCountry "ESP"]
[SourceTitle "playchess.com"]
[Source "ChessBase"]
[SourceQuality "1"]
[TimeControl "5400+30"]

{[%evp 18,53,43,26,7,0,27,12,27,45,34,24,29,21,53,-56,-54,-41,70,81,62,0,29,-16,0,-10,7,17,17,13,23,14,29995,29996,29996,29997,29997,330]} 1. e4 {[%emt 0:06:33]} c5 {[%emt 0:00:16]} 2. Nf3 {[%emt 0:00:06]} Nc6 {[%emt 0:00:20]} 3. d4 {[%emt 0:00:07]} cxd4 {[%emt 0:00:01]} 4. Nxd4 {[%emt 0:00:10]} Nf6 {[%emt 0:00:03]} 5. Nc3 {[%emt 0:00:05]} d6 {[%emt 0:00:02]} 6. Bg5 {[%emt 0:00:04]} e6 {[%emt 0:00:05]} 7. Qd2 {[%emt 0:00:17]} Qb6 {[%emt 0:00:15]} 8. Nb3 {[%emt 0:05:46]} Be7 {[%emt 0:00:15] 8...a6 is more advanced technology.} 9. O-O-O {[%emt 0:00:13]} O-O {[%emt 0:00:08]} 10. f4 {[%emt 0:07:00]} Rd8 {[%emt 0:00:30] B63: Sicilian: Richter-Rauzer: 7...Be7 and unusual Black 7th moves.} 11. Be2 {[%emt 0:04:13]} a6 {[%emt 0:02:46]} 12. g4 {[%emt 0:01:58]} Qc7 {[%emt 0:13:10] The position is equal.} 13. h4 {[%emt 0:05:45][%cal Bh2h4,Bh4h5,Bh5g6][%mdl 32]} b5 {[%emt 0:00:49] [#]} 14. Bxf6 $146 {[%emt 0:00:04]} ({Predecessor:} 14. Bf3 Bb7 15. h5 Rac8 16. Kb1 b4 17. Ne2 d5 18. exd5 Nxd5 19. Qc1 Bxg5 20. Bxd5 {½-½ (57) Petrik,T (2450)-Plachetka,J (2441) Slovakia 2005}) 14... Bxf6 {[%emt 0:00:02]} 15. g5 {[%emt 0:00:05]} Be7 {[%emt 0:00:01]} 16. g6 {[%emt 0:00:22]} (16. h5 $14) 16... fxg6 $15 {[%emt 0:00:10]} 17. h5 {[%emt 0:13:16]} Bf6 {[%emt 0:04:59]} ({Black should play} 17... g5 $1 $15 18. h6 g6 19. fxg5 Bd7) 18. hxg6 $14 {[%emt 0:00:29][%cal Oc3d5] [#] Threatens to win with Nd5!} h6 {[%emt 0:00:25]} 19. Bg4 {[%emt 0:02:30] White is more active.} (19. Rh5 $14) 19... b4 {[%emt 0:06:45]} (19... Ne5 $5 {[%cal Re5g4]} 20. Bxe6+ (20. fxe5 Bg5 $11) 20... Bxe6 $11) 20. Ne2 {[%emt 0:01:05]} d5 {[%emt 0:00:11] Strongly threatening ...e5.} 21. Qd3 {[%emt 0:07:14] Hoping for Kb1.} e5 {[%emt 0:05:57]} ({But not} 21... dxe4 22. Qxe4 Rb8 23. Bxe6+ Kh8 24. Rxd8+ Qxd8 25. Bf7 $16 (25. Qxc6 Bb7 $17)) 22. Bxc8 {[%emt 0:03:37]} Raxc8 {[%emt 0:00:05]} 23. exd5 {[%emt 0:00:09] And now d6 would win.} Ne7 {[%emt 0:04:03]} 24. Qe4 $36 {[%emt 0:03:42][%mdl 2048] White is pushing.} exf4 $2 {[%emt 0:01:49][%mdl 8192]} (24... a5 $11) 25. Qe6+ {[%emt 0:04:24] White mates.} Kh8 {[%emt 0:00:08] [#]} 26. Rxh6+ $3 {[%emt 0:00:07][%mdl 512]} gxh6 {[%emt 0:00:40]} 27. Qxf6+ {[%emt 0:00:05] Weighted Error Value: White=0.23 (precise) /Black=0.54} 1-0

[Event "87th Spanish Championship 2022"]
[Site "Linares"]
[Date "2022.08.16"]
[Round "7.16"]
[White "Jimenez Bernal, Francisco"]
[Black "Moreno Tejera, Emilio"]
[Result "0-1"]
[ECO "A96"]
[WhiteElo "2149"]
[BlackElo "2420"]
[Annotator "TA"]
[PlyCount "118"]
[EventDate "2022.08.11"]
[EventType "swiss"]
[EventCountry "ESP"]
[SourceTitle "playchess.com"]
[Source "ChessBase"]
[SourceQuality "1"]
[TimeControl "5400+30"]

{[%evp 17,118,14,47,38,60,8,39,28,17,21,22,2,7,0,0,-8,-6,-3,-12,-4,-4,-13,0,-3,0,0,0,-4,0,0,1,-11,-29,-46,-51,-81,-64,-55,-53,-56,-45,-56,-24,-19,-13,0,-16,-148,-131,-107,-49,-48,-28,-364,-366,-363,-346,-346,-346,-328,-320,-221,-240,-209,-202,-412,-370,-490,-476,-481,-470,-491,-484,-468,-482,-504,-489,-527,-504,-640,-561,-765,-756,-959,-1019,-866,-456,-1306,-1320,-1333,-1300,-1140,-1139,-1280,-1132,-29983,-29970,-29988,-29989,-29989,-29990,-29990,-29991]} 1. d4 {[%emt 0:05:38]} f5 {[%emt 0:00:15]} 2. g3 {[%emt 0:01:03]} Nf6 {[%emt 0:00:13]} 3. Bg2 {[%emt 0:00:07]} e6 {[%emt 0:00:21]} 4. Nf3 {[%emt 0:00:31]} Be7 {[%emt 0:00:07]} 5. O-O {[%emt 0:00:06]} O-O {[%emt 0:00:04]} 6. c4 {[%emt 0:00:12]} d6 {[%emt 0:00:13]} 7. Nc3 {[%emt 0:00:19]} Ne4 {[%emt 0:00:12]} 8. Qc2 {[%emt 0:00:07]} Nxc3 {[%emt 0:00:16]} 9. Qxc3 {[%emt 0:00:02]} Bf6 {[%emt 0:01:31]} 10. b4 {[%emt 0:02:58] A96: Classical Dutch: Fluid Systems: Early deviations.} a5 {[%emt 0:05:56]} 11. a3 {[%emt 0:09:55]} (11. bxa5 Nc6 $11) ({Better is} 11. b5 $14) 11... Nd7 {[%emt 0:03:16][%cal Bb8d7,Bd7b6,Bb6a4,Ba4b2][%mdl 32]} 12. Bb2 {[%emt 0:05:34] [#] White is slightly better.} (12. c5 {looks sharper.} e5 13. cxd6 cxd6 14. dxe5 dxe5 15. e4) 12... Nb6 $146 {[%emt 0:07:07]} ({Predecessor:} 12... c5 13. Qb3 Qc7 14. dxc5 dxc5 15. Bxf6 Rxf6 16. b5 e5 17. e4 b6 18. exf5 Bb7 {1-0 (32) Zabron,M (1804)-Betkowski,A (2038) Lazy 2019}) 13. Qc2 {[%emt 0:01:18] Prevents Na4.} (13. bxa5 Na4 14. Qb3 Nxb2 $15) 13... Bd7 {[%emt 0:02:02]} 14. Nd2 {[%emt 0:09:57]} Na4 {[%emt 0:06:36]} 15. b5 {[%emt 0:09:58]} ({Reject} 15. Bxb7 Rb8 16. Bg2 axb4 17. axb4 Nxb2 18. Qxb2 c5 $15) 15... Nxb2 {[%emt 0:20:07]} 16. Qxb2 {[%emt 0:00:02]} c5 {[%emt 0:00:11]} 17. e3 {[%emt 0:03:19]} cxd4 {[%emt 0:18:38]} 18. exd4 {[%emt 0:00:03]} Qb6 {[%emt 0:00:24]} 19. Nf3 {[%emt 0:01:31]} Rac8 {[%emt 0:04:10]} 20. Rfc1 {[%emt 0:14:15]} Qd8 {[%emt 0:04:57]} 21. Nd2 {[%emt 0:06:30]} Qb6 {[%emt 0:03:39]} 22. Nf3 {[%emt 0:00:05]} Kh8 {[%emt 0:00:19]} 23. Rab1 {[%emt 0:01:13]} Qd8 {[%emt 0:00:53]} 24. Nd2 {[%emt 0:01:38]} b6 {[%emt 0:01:20]} 25. f4 {[%emt 0:00:24] Prevents e5.} g5 {[%emt 0:00:44]} 26. Nf3 {[%emt 0:01:30]} gxf4 {[%emt 0:00:46]} 27. gxf4 {[%emt 0:00:02]} Rg8 {[%emt 0:00:21]} 28. Kh1 {[%emt 0:02:04]} Qe7 {[%emt 0:00:30]} (28... Rc7 $5 {[%cal Rd7c8]} 29. Qf2 Qe7 $15) 29. Qd2 {[%emt 0:02:19]} a4 {[%emt 0:02:57]} 30. Qe3 {[%emt 0:02:35]} Qg7 {[%emt 0:01:23][%csl Gg8][%cal Rg7g2]} 31. Bh3 {[%emt 0:04:52]} Qh6 {[%emt 0:02:11]} 32. Nd2 {[%emt 0:00:33]} (32. Bg2 $1 $11 {keeps the balance.}) 32... e5 {[%emt 0:03:11] Black is more active.} 33. dxe5 {[%emt 0:00:35]} Bxe5 {[%emt 0:00:41]} 34. Rf1 $15 {[%emt 0:01:36]} Rce8 $40 {[%emt 0:00:11][%mdl 128] White needs to defend precisely.} 35. Bg2 $2 {[%emt 0:04:36][%mdl 8192] This move loses the game for White.} (35. Rf3 $11 Bf6 36. Qxb6) 35... Rg4 $19 {[%emt 0:08:01][%cal Re5f4]} 36. Nf3 {[%emt 0:00:49][%cal Rf3e5]} Bxf4 {[%emt 0:01:37] Chess con chili.} 37. Qd4+ {[%emt 0:00:39] [#]} Rg7 $1 {[%emt 0:00:54]} 38. Qxb6 {[%emt 0:04:33]} Be3 {[%emt 0:01:23]} ({Stronger than} 38... Qg6 39. Rb2 $17) 39. Qa5 {[%emt 0:00:24]} Qg6 {[%emt 0:00:50][%csl Gg7][%cal Rg6g2]} 40. Rb2 {[%emt 0:01:46] [#]} Qf6 $1 {[%emt 0:00:29]} 41. Rc2 {[%emt 0:00:35]} (41. Re2) 41... Reg8 {[%emt 0:00:34] ...f4 is the strong threat.} 42. Qc3 {[%emt 0:02:07]} Qxc3 {[%emt 0:00:09]} 43. Rxc3 {[%emt 0:00:01]} f4 {[%emt 0:00:06]} ({Not} 43... Rxg2 44. Rxe3 f4 45. Ree1 $15 (45. Re7 Bh3 $17)) 44. Rc2 {[%emt 0:00:42]} Bf5 {[%emt 0:00:13]} 45. Rb2 {[%emt 0:00:54]} Bd3 {[%emt 0:00:38][%csl LRc4,LRf1]} 46. Rd1 {[%emt 0:00:26]} Bxc4 {[%emt 0:00:25]} 47. Nh4 {[%emt 0:00:24]} Bb3 {[%emt 0:01:24] A strong pair of Bishops.} 48. Rxd6 {[%emt 0:00:30]} Bc1 {[%emt 0:00:44]} 49. Rf2 {[%emt 0:01:06]} Rg4 {[%emt 0:00:43]} 50. b6 {[%emt 0:02:19]} Rxh4 {[%emt 0:00:36]} 51. b7 {[%emt 0:00:15]} Bxa3 {[%emt 0:00:17]} 52. Rc6 {[%emt 0:00:43]} (52. Rb6 $142 Rb8 53. Ra6) 52... Rhg4 {[%emt 0:00:30][%cal Ob3d5]} 53. Rc8 {[%emt 0:00:19]} Bd6 {[%emt 0:00:19] Hoping for ...a3.} 54. Rd2 {[%emt 0:00:56]} Bb8 {[%emt 0:00:23]} 55. h3 {[%emt 0:00:26]} Rg3 {[%emt 0:00:36] ( -> ...a3)} 56. Kh2 {[%emt 0:00:31]} Be6 {[%emt 0:00:39] Black mates.} 57. Rdd8 {[%emt 0:00:34]} Rxg2+ {[%emt 0:00:48]} 58. Kh1 {[%emt 0:00:01]} Rxd8 {[%emt 0:00:25]} 59. Rxd8+ {[%emt 0:00:34]} Rg8 {[%emt 0:00:05] Weighted Error Value: White=0.61/Black=0.13 (very precise)} 0-1